fUSD/lending_fUSD_20260221
["ID","MTS","AMOUNT","RATE_DAILY","PERIOD"]
[406273531,1771681832412,-500.0,0.00014,2]
[406273532,1771681832422,-500.0,0.00014,2]
[406273533,1771681832431,-200.0,0.0001401,2]
[406273534,1771681832441,-500.0,0.0001401,2]
[406273535,1771681832453,-500.0,0.0001401,2]
[406273536,1771681832465,-500.0,0.0001401,2]
[406273537,1771681832476,-151.0,0.0001401,2]
[406273538,1771681832486,-151.0,0.0001401,2]
[406273539,1771681832496,-151.0,0.0001401,2]
[406273540,1771681832507,-151.0,0.0001401,2]
[406273541,1771681832517,-545.79913084,0.0001401,2]
[406273542,1771681832530,-500.0,0.0001401,2]
[406273543,1771681832540,-151.0,0.0001401,2]
[406273544,1771681832551,-500.0,0.0001401,2]
[406273545,1771681832560,-151.0,0.0001401,2]
[406273546,1771681832570,-500.0,0.0001401,2]
[406273547,1771681832580,-513.17312972,0.0001401,2]
[406273548,1771681832590,-151.0,0.0001401,2]
[406273549,1771681832599,-151.0,0.0001401,2]
[406273550,1771681832609,-151.0,0.0001401,2]
[406273551,1771681832619,-151.0,0.0001401,2]
[406273552,1771681832628,-151.0,0.0001401,2]
[406273553,1771681832638,-151.0,0.0001401,2]
[406273554,1771681832648,-151.0,0.0001401,2]
[406273555,1771681832658,-151.0,0.0001401,2]
[406273556,1771681832668,-151.0,0.0001401,2]
[406273557,1771681832678,-151.0,0.0001401,2]
[406273558,1771681832687,-151.0,0.0001401,2]
[406273559,1771681832698,-151.0,0.0001401,2]
[406273560,1771681832710,-151.0,0.0001401,2]
[406273561,1771681832720,-151.0,0.0001401,2]
[406273562,1771681832730,-151.0,0.0001401,2]
[406273563,1771681832740,-151.0,0.0001401,2]
[406273564,1771681832750,-151.0,0.0001401,2]
[406273565,1771681832759,-158.28068058,0.0001401,2]
[406273566,1771681832770,-505.61228041,0.00014017,2]
[406273567,1771681832779,-500.0,0.00014017,2]
[406273568,1771681832789,-683.62,0.00014018,2]
[406273569,1771681832799,-500.0,0.00014019,2]
[406273570,1771681832809,-500.0,0.00014019,2]
[406273571,1771681832820,-500.0,0.00014019,2]
[406273572,1771681832830,-500.0,0.00014019,2]
[406273573,1771681832840,-500.0,0.00014019,2]
[406273574,1771681832850,-500.0,0.00014019,2]
[406273575,1771681832861,-500.0,0.00014019,2]
[406273576,1771681832871,-500.0,0.00014019,2]
[406273577,1771681832881,-500.0,0.00014019,2]
[406273578,1771681832891,-500.0,0.00014019,2]
[406273579,1771681832900,-500.0,0.00014019,2]
[406273580,1771681832910,-500.0,0.00014019,2]
[406273581,1771681832920,-500.0,0.00014019,2]
[406273582,1771681832929,-500.0,0.00014019,2]
[406273583,1771681832939,-500.0,0.00014019,2]
[406273584,1771681832948,-500.0,0.00014019,2]
[406273585,1771681832958,-500.0,0.00014019,2]
[406273586,1771681832968,-500.0,0.00014019,2]
[406273587,1771681832978,-500.0,0.00014019,2]
[406273588,1771681832988,-500.0,0.00014019,2]
[406273589,1771681832998,-500.0,0.00014019,2]
[406273590,1771681833007,-500.0,0.00014019,2]
[406273591,1771681833017,-616.19377918,0.00014019,2]
[406273592,1771681833027,-500.0,0.00014019,2]
[406273593,1771681833036,-500.0,0.00014019,2]
[406273594,1771681833046,-500.0,0.00014019,2]
[406273595,1771681833056,-166.66,0.00014097,2]
[406273596,1771681833066,-500.0,0.00014117,2]
[406273597,1771681833075,-169.83,0.00014146,2]
[406273598,1771681833085,-658.0,0.00014176,2]
[406273599,1771681833094,-153.54765348,0.00014176,2]
[406273600,1771681833104,-967.93526172,0.0001422,2]
[406273601,1771681833114,-1000.0,0.00014221,2]
[406273602,1771681833124,-21146.63369886,0.00014249,2]
[406273603,1771681833134,-500.0,0.00014253,2]
[406273604,1771681833144,-683.62,0.00014292,2]
[406273605,1771681833154,-500.0,0.0001432,2]
[406273606,1771681833164,-500.0,0.0001432,2]
[406273607,1771681833173,-500.0,0.0001432,2]
[406273608,1771681833183,-500.0,0.0001432,2]
[406273609,1771681833193,-500.0,0.0001432,2]
[406273610,1771681833203,-500.0,0.0001432,2]
[406273611,1771681833213,-500.0,0.0001432,2]
[406273612,1771681833520,-500.0,0.0001432,2]
[406273613,1771681833531,-500.0,0.0001432,2]
[406273614,1771681833540,-500.0,0.0001432,2]
[406273615,1771681833550,-505.36393545,0.0001432,2]
[406273616,1771681833559,-500.0,0.0001432,2]
[406273617,1771681833569,-500.0,0.0001432,2]
[406273618,1771681833579,-500.0,0.0001432,2]
[406273619,1771681833588,-500.0,0.0001432,2]
[406273620,1771681833598,-500.0,0.0001432,2]
[406273621,1771681833607,-500.0,0.0001432,2]
[406273622,1771681833616,-500.0,0.0001432,2]
[406273623,1771681833625,-500.0,0.0001432,2]
[406273624,1771681833638,-500.0,0.0001432,2]
[406273625,1771681833647,-500.0,0.0001432,2]
[406273626,1771681833657,-500.0,0.0001432,2]
[406273627,1771681833666,-274.81553287,0.0001432,2]
[406273628,1771681833675,-500.0,0.0001432,2]
[406273629,1771681833685,-500.0,0.0001432,2]
[406273630,1771681833694,-532.19255729,0.0001432,2]
[406273631,1771681833703,-500.0,0.0001432,2]
[406273632,1771681833713,-500.0,0.0001432,2]
[406273633,1771681833722,-504.39683652,0.0001432,2]
[406273634,1771681833731,-500.0,0.0001432,2]
[406273635,1771681833741,-500.0,0.0001432,2]
[406273636,1771681833750,-500.0,0.0001432,2]
[406273637,1771681833759,-601.05527925,0.0001432,2]
[406273638,1771681833768,-500.0,0.0001432,2]
[406273639,1771681833777,-500.0,0.0001432,2]
[406273640,1771681833787,-500.0,0.0001432,2]
[406273641,1771681833796,-500.0,0.0001432,2]
[406273642,1771681833806,-500.0,0.0001432,2]
[406273643,1771681833815,-500.0,0.0001432,2]
[406273644,1771681833824,-500.0,0.0001432,2]
[406273645,1771681833833,-500.0,0.0001432,2]
[406273646,1771681833842,-500.0,0.0001432,2]
[406273647,1771681833852,-500.0,0.0001432,2]
[406273648,1771681833861,-500.0,0.0001432,2]
[406273649,1771681833870,-500.0,0.0001432,2]
[406273650,1771681833879,-500.0,0.0001432,2]
[406273651,1771681833888,-500.0,0.0001432,2]
[406273652,1771681833898,-500.0,0.0001432,2]
[406273653,1771681833907,-500.0,0.0001432,2]
[406273654,1771681833917,-500.0,0.0001432,2]
[406273655,1771681833926,-500.0,0.0001432,2]
[406273656,1771681833935,-500.0,0.0001432,2]
[406273657,1771681833944,-500.0,0.0001432,2]
[406273658,1771681833953,-500.0,0.0001432,2]
[406273659,1771681833963,-500.0,0.0001432,2]
[406273660,1771681833972,-500.0,0.0001432,2]
[406273661,1771681833982,-500.0,0.0001432,2]
[406273662,1771681833991,-500.0,0.0001432,2]
[406273663,1771681834000,-500.0,0.0001432,2]
[406273664,1771681834009,-500.0,0.0001432,2]
[406273665,1771681834018,-500.0,0.0001432,2]
[406273666,1771681834028,-500.0,0.0001432,2]
[406273667,1771681834037,-500.0,0.0001432,2]
[406273668,1771681834046,-500.0,0.0001432,2]
[406273669,1771681834055,-500.0,0.0001432,2]
[406273670,1771681834064,-627.47385881,0.0001432,2]
[406273671,1771681834074,-500.0,0.0001432,2]
[406273672,1771681834083,-500.0,0.0001432,2]
[406273673,1771681834092,-500.0,0.0001432,2]
[406273674,1771681834101,-204.27737629,0.0001432,2]
[406273675,1771681834111,-500.0,0.0001432,2]
[406273676,1771681834120,-500.0,0.0001432,2]
[406273677,1771681834129,-500.0,0.0001432,2]
[406273678,1771681834138,-500.0,0.0001432,2]
[406273679,1771681834147,-500.0,0.0001432,2]
[406273680,1771681834157,-500.0,0.0001432,2]
[406273681,1771681834166,-500.0,0.0001432,2]
[406273682,1771681834175,-500.0,0.0001432,2]
[406273683,1771681834184,-500.0,0.0001432,2]
[406273684,1771681834194,-500.0,0.0001432,2]
[406273685,1771681834203,-500.0,0.0001432,2]
[406273686,1771681834213,-500.0,0.0001432,2]
[406273687,1771681834222,-554.43343843,0.0001432,2]
[406273688,1771681834231,-500.0,0.0001432,2]
[406273689,1771681834241,-500.0,0.0001432,2]
[406273690,1771681834250,-500.0,0.0001432,2]
[406273691,1771681834259,-500.0,0.0001432,2]
[406273692,1771681834269,-500.0,0.0001432,2]
[406273693,1771681834278,-500.0,0.0001432,2]
[406273694,1771681834288,-513.53363328,0.0001432,2]
[406273695,1771681834297,-500.0,0.0001432,2]
[406273696,1771681834306,-500.0,0.0001432,2]
[406273697,1771681834315,-500.0,0.0001432,2]
[406273698,1771681834325,-564.4785355,0.0001432,2]
[406273699,1771681834334,-500.0,0.0001432,2]
[406273700,1771681834343,-500.0,0.0001432,2]
[406273701,1771681834352,-500.0,0.0001432,2]
[406273702,1771681834362,-500.0,0.0001432,2]
[406273703,1771681834371,-500.0,0.0001432,2]
[406273704,1771681834381,-500.0,0.0001432,2]
[406273705,1771681834390,-500.0,0.0001432,2]
[406273706,1771681834399,-500.0,0.0001432,2]
[406273707,1771681834408,-500.0,0.0001432,2]
[406273708,1771681834417,-500.0,0.0001432,2]
[406273709,1771681834427,-386.77491301,0.0001432,2]
[406273710,1771681834436,-500.0,0.0001432,2]
[406273711,1771681834445,-500.0,0.0001432,2]
[406273712,1771681834458,-511.47956793,0.0001432,2]
[406273713,1771681834467,-503.02114283,0.0001432,2]
[406273714,1771681834476,-505.47338901,0.0001432,2]
[406273715,1771681834485,-500.0,0.0001432,2]
[406273716,1771681834495,-500.0,0.0001432,2]
[406273717,1771681834504,-541.91630413,0.0001432,2]
[406273718,1771681834513,-1383.98,0.00014384,2]
[406273719,1771681834522,-600.0,0.00014503,2]
[406273720,1771681834533,-500.0,0.00014527,2]
[406273721,1771681834542,-166.66,0.00014547,2]
[406273722,1771681834551,-200.0,0.00014558,2]
[406273723,1771681834560,-683.62,0.00014566,2]
[406273724,1771681834569,-151.0,0.00014634,2]
[406273725,1771681834578,-33160.45874942,0.00014741,2]
[406273726,1771681834587,-500.0,0.00014801,2]
[406273727,1771681834596,-683.62,0.0001484,2]
[406273728,1771681834605,-6647.08,0.00014853,2]
[406273729,1771681834615,-155.81953974,0.000149,2]
[406273730,1771681834624,-331.12202097,0.00014921,2]
[406273731,1771681834633,-166.66,0.00014998,2]
[406273732,1771681834642,-250.0,0.00015,2]
[406273733,1771681834651,-606.1313001,0.00015037,2]
[406273734,1771681834661,-1383.98,0.00015068,2]
[406273735,1771681834670,-454.14985718,0.00015075,2]
[406273736,1771681834679,-433.0,0.00015098,2]
[406273737,1771681834688,-200.0,0.00015106,2]
[406273738,1771681834698,-683.62,0.00015114,2]
[406273739,1771681834708,-150.0,0.00015172,2]
[406273740,1771681834717,-168.71198045,0.00015173,2]
[406273741,1771681834727,-501.38512914,0.00015173,2]
[406273742,1771681834736,-500.41653761,0.00015173,2]
[406273743,1771681834745,-246.364609,0.00015173,2]
[406273744,1771681834754,-184.37223932,0.00015173,2]
[406273745,1771681834764,-226.19494716,0.00015173,2]
[406273746,1771681834773,-165.27434071,0.00015173,2]
[406273747,1771681834783,-503.18537404,0.00015173,2]
[406273748,1771681834792,-500.0,0.00015173,2]
[406273749,1771681834802,-500.0,0.00015173,2]
[406273750,1771681834811,-500.0,0.00015173,2]
[406273751,1771681834820,-500.0,0.00015173,2]
[406273752,1771681834830,-503.5027165,0.00015173,2]
[406273753,1771681834839,-500.0,0.00015173,2]
[406273754,1771681834848,-500.0,0.00015173,2]
[406273755,1771681834857,-500.0,0.00015173,2]
[406273756,1771681834866,-500.18684223,0.00015173,2]
[406273757,1771681834875,-500.0,0.00015173,2]
[406273758,1771681834884,-160.43618906,0.00015173,2]
[406273759,1771681834893,-500.0,0.00015173,2]
[406273760,1771681834902,-258.08456559,0.00015173,2]
[406273761,1771681834911,-500.0,0.00015245,2]
[406273762,1771681834921,-300.0,0.00015246,2]
[406273763,1771681834930,-600.0,0.00015246,2]
[406273764,1771681834939,-193.0,0.00015246,2]
[406273765,1771681834948,-195.0,0.00015259,2]
[406273766,1771681834958,-150.04229698,0.00015259,2]
[406273767,1771681834967,-500.0,0.00015259,2]
[406273768,1771681834976,-300.0,0.00015259,2]
[406273769,1771681834986,-329.59688924,0.00015339,2]
[406273770,1771681834995,-683.64710921,0.00015388,2]
[406273771,1771681835004,-1680.0,0.00015397,2]
[406273772,1771681835013,-166.66,0.00015448,2]
[406273773,1771681835023,-198.0,0.00015497,3]
[406273774,1771681835032,-169.83,0.00015561,2]
[406273775,1771681835041,-200.0,0.00015654,2]
[406273776,1771681835051,-1600.0,0.00015678,2]
[406273777,1771681835060,-1000.0,0.00015721,2]
[406273778,1771681835068,-500.0,0.00015721,2]
[406273779,1771681835078,-1000.0,0.00015721,2]
[406273780,1771681835087,-501.52699276,0.00015721,2]
[406273781,1771681835096,-1383.98,0.00015753,2]
[406273782,1771681835106,-166.66,0.00015899,2]
[406273783,1771681835115,-2346.81250728,0.0001596,2]
[406273784,1771681835124,-222.0,0.00016,2]
[406273785,1771681835134,-519.0,0.00016,2]
[406273786,1771681835143,-150.41557459,0.00016,2]
[406273787,1771681835152,-200.0,0.00016202,2]
[406273788,1771681835161,-1500.0,0.00016268,2]
[406273789,1771681835171,-1500.0,0.00016268,2]
[406273790,1771681835180,-18756.85392111,0.00016323,2]
[406273796,1771681837957,-500.0,0.00015173,2]
[406273797,1771681837967,-432.44184216,0.00015721,2]
[406273798,1771681838069,-567.55815784,0.00015721,2]
[406273799,1771681838079,-1500.0,0.00016268,2]
[406273800,1771681838089,-13848.02117063,0.00016323,2]
[406273801,1771681840085,-255.86690826,0.00016323,2]
[406273802,1771681840095,-736.0,0.00016405,2]
[406273803,1771681840106,-161938.1264402,0.00016423,2]
[406273804,1771681840115,-25000.0,0.00016438,2]
[406273805,1771681840124,-1383.98,0.00016438,2]
[406273806,1771681840134,-500.0,0.00016559,2]
[406273807,1771681840143,-264.04644025,0.00016559,2]
[406273808,1771681840152,-500.0,0.00016559,2]
[406273809,1771681840161,-500.0,0.00016559,2]
[406273810,1771681840170,-500.0,0.00016559,2]
[406273811,1771681840179,-500.0,0.00016559,2]
[406273812,1771681840188,-500.0,0.00016559,2]
[406273813,1771681840197,-500.0,0.00016559,2]
[406273814,1771681840207,-174.61919141,0.00016559,2]
[406273815,1771681840217,-500.0,0.00016559,2]
[406273816,1771681840226,-500.0,0.00016559,2]
[406273817,1771681840235,-500.0,0.00016559,2]
[406273818,1771681840250,-500.0,0.00016559,2]
[406273819,1771681840260,-693.3919763,0.00016559,2]
[406273820,1771681840269,-719.04747942,0.00016614,2]
[406273821,1771681840279,-745.65223616,0.00016669,2]
[406273822,1771681840288,-773.2413689,0.00016724,2]
[406273823,1771681840298,-801.85129955,0.00016779,2]
[406273824,1771681840307,-200.0,0.00016792,2]
[406273825,1771681840317,-2000.0,0.00016816,2]
[406273826,1771681840326,-850.90980006,0.00016816,2]
[406273827,1771681840336,-2000.0,0.00016816,2]
[406273828,1771681840346,-831.51979763,0.00016834,2]
[406273829,1771681840355,-862.28603014,0.00016889,2]
[406273830,1771681840365,-1000.0,0.000169,6]
[406273831,1771681840374,-9999.99,0.00016922,2]
[406273832,1771681840384,-150.99,0.00016922,2]
[406273833,1771681840394,-299.99,0.00016922,4]
[406273834,1771681840404,-9999.99,0.00016922,2]
[406273835,1771681840414,-348.4,0.00016922,2]
[406273836,1771681840423,-2351.0,0.00016936,2]
[406273837,1771681840432,-894.19061326,0.00016944,2]
[406273838,1771681840445,-169.83,0.00016976,2]
[406273839,1771681840458,-927.27566595,0.00016999,2]
[406273840,1771681840469,-165783.78818479,0.00017,2]
[406273841,1771681840478,-300.0,0.00017,2]
[406273842,1771681840488,-1000.0,0.00017041,2]
[406273843,1771681840498,-961.58486559,0.00017054,2]
[406273844,1771681840508,-1000.0,0.00017099,2]
[406273845,1771681840518,-181.08010149,0.00017107,2]
[406273846,1771681840527,-997.16350561,0.00017109,2]
[406273847,1771681840538,-198.0,0.00017135,3]
[406273848,1771681840547,-295.0,0.00017233,2]
[406273849,1771681840557,-215.11911998,0.00017264,2]
[406273850,1771681840566,-2500.0,0.00017364,2]
[406273851,1771681840576,-2500.0,0.00017364,2]
[406273852,1771681840585,-349.06897401,0.00017371,2]
[406273853,1771681840595,-1600.0,0.0001742,2]
[406273854,1771681840604,-600.0,0.00017513,2]
[406273855,1771681840614,-200.0,0.00017636,3]
[406273856,1771681840623,-187.78006525,0.00017655,2]
[406273857,1771681840633,-784.71410854,0.000177,2]
[406273858,1771681840645,-2000.0,0.000177,6]
[406273859,1771681840655,-304.3,0.00017738,2]
[406273860,1771681840664,-1000.0,0.00017777,2]
[406273861,1771681840674,-1000.0,0.00017777,2]
[406273863,1771681840683,-1000.0,0.00017777,2]
[406273865,1771681840693,-1000.0,0.00017777,2]
[406273867,1771681840702,-2186.476,0.00017781,2]
[406273869,1771681840711,-190.594,0.00017781,2]
[406273871,1771681840721,-3100.0,0.000178,6]
[406273873,1771681840732,-500.0,0.00017807,2]
[406273875,1771681840741,-156.97959149,0.00017808,2]
[406273877,1771681840751,-422.59738712,0.00017808,2]
[406273879,1771681840760,-800.0,0.00017808,2]
[406273881,1771681840769,-1252.0,0.00017813,2]
[406273883,1771681840778,-164.94,0.00017813,2]
[406273885,1771681840787,-1004.67257269,0.0001786,2]
[406273886,1771681840797,-150.0,0.00017897,2]
[406273887,1771681840806,-4100.0,0.000179,6]
[406273888,1771681840815,-3112.19734218,0.000179,2]
[406273889,1771681840825,-500.0,0.00017912,2]
[406273890,1771681840834,-3000.0,0.00017912,2]
[406273891,1771681840846,-3000.0,0.00017912,2]
[406273892,1771681840855,-1343.9005063,0.0001797,2]
[406273893,1771681840864,-157.68524976,0.0001799,2]
[406273894,1771681840874,-300.0,0.00017999,2]
[406273895,1771681840883,-666.0,0.00017999,2]
[406273896,1771681840892,-296.63098615,0.00017999,2]
[406273897,1771681840901,-300.0,0.00017999,2]
[406273898,1771681840911,-300.0,0.00017999,2]
[406273899,1771681840920,-666.0,0.00017999,2]
[406273900,1771681840929,-394723.73716815,0.00018,2]
[406273901,1771681842123,10000.01,0.00014701,2]
[406273902,1771681842147,10000.01,0.00014701,2]
[406273903,1771681842168,7347.55460891,0.00014701,2]
[406273919,1771681843315,-858.87950471,0.00018,2]
[406274141,1771681845780,-2129.39662644,0.00018,2]
[406275521,1771682313687,585.08,0.0001381,2]
[406275522,1771682347396,9021.87,0.000138,2]
[406275524,1771682526599,10000.0,0.00015,30]
[406275526,1771682564830,2466.07,0.00013791,2]
[406275527,1771682572251,164.94,0.00013791,2]
[406275528,1771682608887,150.0,0.00013753,2]
[406275529,1771682641241,1500.0,0.00013715,2]
[406275530,1771682667013,-500.0,0.00013822,2]
[406275531,1771682682919,-264.0,0.00013822,2]
[406275532,1771682698004,-250.0,0.00013872,2]
[406275533,1771682708946,1750.79,0.00011146,2]
[406275534,1771682709156,1750.79,0.00011292,2]
[406275535,1771682709365,998.43,0.00011439,2]
[406275536,1771682709388,752.36,0.00011439,2]
[406275537,1771682709590,1750.79,0.00011586,2]
[406275538,1771682709804,1750.79,0.00011732,2]
[406275539,1771682709993,746.07,0.00011879,2]
[406275540,1771682710016,1004.72,0.00011879,2]
[406275541,1771682710201,1750.79,0.00012025,2]
[406275542,1771682710422,1750.79,0.00012172,2]
[406275543,1771682710626,493.71,0.00012319,2]
[406275544,1771682710651,1257.08,0.00012319,2]
[406275545,1771682710827,1750.79,0.00012465,2]
[406275546,1771682711237,1750.79,0.00012612,2]
[406275547,1771682711458,241.35,0.00012759,2]
[406275548,1771682711479,1509.44,0.00012759,2]
[406275549,1771682711669,1750.79,0.00012905,2]
[406275550,1771682711890,1739.78,0.00013052,2]
[406275551,1771682711912,11.01,0.00013052,2]
[406275552,1771682712301,1750.79,0.00013199,2]
[406275553,1771682712504,1750.79,0.00013345,2]
[406275554,1771682712697,1750.79,0.00013492,2]
[406275555,1771682712896,1750.79,0.00013639,2]
[406275556,1771682713095,1750.79,0.00013785,2]
[406275557,1771682724280,155.511805,0.00013718,7]
[406275558,1771682728288,-166.66,0.00013901,2]
[406275559,1771682743230,-1000.0,0.00013922,2]
[406275560,1771682775696,493.0,0.00019,120]
[406275562,1771682835458,-1750.79,0.00013932,2]
[406275563,1771682835492,-169.61058407,0.00013966,2]
[406275564,1771682835522,-503.52113418,0.00014,2]
[406275565,1771682835552,-500.0,0.00014,2]
[406275566,1771682835583,-300.0,0.00014053,2]
[406275567,1771682835612,-300.0,0.00014053,2]
[406275568,1771682835641,-1200.0,0.00014053,2]
[406275569,1771682836489,-851.27696113,0.00014054,2]
[406275570,1771682836602,-10000.01,0.00014054,2]
[406275571,1771682836726,-4524.99696113,0.00014054,2]
[406275572,1771682836794,-950.01607774,0.00014054,2]
[406275573,1771682836834,-166.66,0.00014194,2]
[406275574,1771682836864,-3435.57,0.00014249,2]
[406275575,1771682836918,-2795.55,0.00014286,2]
[406275576,1771682836958,-671.25400588,0.00014286,2]
[406275577,1771682836988,-257.03080178,0.00014338,2]
[406275578,1771682837019,-309.12003817,0.00014338,2]
[406275579,1771682837048,-500.0,0.00014338,2]
[406275580,1771682837076,-500.0,0.00014338,2]
[406275581,1771682837118,-500.0,0.00014338,2]
[406275582,1771682837154,-500.0,0.00014338,2]
[406275583,1771682837186,-500.0,0.00014338,2]
[406275584,1771682837227,-500.0,0.00014338,2]
[406275585,1771682837259,-589.93045343,0.00014338,2]
[406275586,1771682837300,-500.0,0.00014338,2]
[406275587,1771682837330,-500.0,0.00014338,2]
[406275588,1771682837598,-510.43282028,0.00014338,2]
[406275589,1771682837626,-381.96045246,0.00014338,2]
[406275590,1771682837653,-392.53423255,0.00014338,2]
[406275591,1771682837748,-500.0,0.00014338,2]
[406275592,1771682837778,-249.10229322,0.00014338,2]
[406275593,1771682837809,-1416.1110988,0.00014338,2]
[406275594,1771682837848,-669.58321596,0.00014338,2]
[406275595,1771682837883,-2085.69431476,0.00014338,2]
[406275596,1771682837917,-2085.69431476,0.00014338,2]
[406275597,1771682838009,-2085.69431476,0.00014338,2]
[406275598,1771682838078,-2085.69431476,0.00014338,2]
[406275599,1771682838111,-2085.69431476,0.00014338,2]
[406275600,1771682838739,-663.40571052,0.00014338,2]
[406275601,1771682838756,-1422.28860424,0.00014338,2]
[406275602,1771682838766,-234.94413672,0.00014338,2]
[406275603,1771682838814,231.02500992,0.000136,4]
[406275604,1771682838839,968.97499008,0.000136,4]
[406275605,1771682838957,-1850.75017804,0.00014338,2]
[406275606,1771682838999,-2085.69431476,0.00014338,2]
[406275607,1771682839041,-2085.69431476,0.00014338,2]
[406275608,1771682839255,-2085.69431476,0.00014338,2]
[406275609,1771682839320,-2085.69431476,0.00014338,2]
[406275610,1771682839492,-2085.69431476,0.00014338,2]
[406275611,1771682840515,2400.0,0.000137,5]
[406275612,1771682842610,3600.0,0.000138,5]
[406275613,1771682842735,-3892.92590801,0.00014339,2]
[406275614,1771682844710,4900.0,0.000139,5]
[406275615,1771682844830,-5000.01,0.00014339,2]
[406275616,1771682844949,-5000.01,0.00014339,2]
[406275617,1771682845178,-5000.01,0.00014339,2]
[406275618,1771682845288,-5000.01,0.00014339,2]
[406275619,1771682845396,-5000.01,0.00014339,2]
[406275620,1771682845517,-5000.01,0.00014339,2]
[406275621,1771682845631,-5000.01,0.00014339,2]
[406275622,1771682845728,-5000.01,0.00014339,2]
[406275623,1771682845854,-5000.01,0.00014339,2]
[406275624,1771682846004,-5000.01,0.00014339,2]
[406275625,1771682869400,1500.01,0.00014239,2]
[406275626,1771682869424,10000.01,0.00014239,2]
[406275627,1771682869448,10000.01,0.00014239,2]
[406275628,1771682869471,4859.29756778,0.00014239,2]
[406275629,1771682871570,554.00896725,0.00014239,2]
[406275630,1771682881329,300.0,0.00014338,2]
[406275631,1771682886730,1924.05300537,0.00014338,2]
[406275632,1771682886775,1924.05300537,0.00014338,2]
[406275633,1771682886809,438.59745423,0.00014338,2]
[406275634,1771682886833,1485.45555114,0.00014338,2]
[406275635,1771682886866,1924.05300537,0.00014338,2]
[406275636,1771682886904,1924.05300537,0.00014338,2]
[406275637,1771682886937,1924.05300537,0.00014338,2]
[406275638,1771682886975,1924.05300537,0.00014338,2]
[406275639,1771682887015,818.34242738,0.00014338,2]
[406275640,1771682887041,1105.71057799,0.00014338,2]
[406275641,1771682887071,1924.05300537,0.00014338,2]
[406275642,1771682887104,1924.05300537,0.00014338,2]
[406275643,1771682887138,1924.05300537,0.00014338,2]
[406275644,1771682887169,1924.05300537,0.00014338,2]
[406275645,1771682887212,1198.08740053,0.00014338,2]
[406275646,1771682887238,725.96560484,0.00014338,2]
[406275647,1771682887270,1924.05300537,0.00014338,2]
[406275648,1771682887302,1924.05300537,0.00014338,2]
[406275649,1771682887333,1924.05300537,0.00014338,2]
[406275650,1771682887368,1924.05300537,0.00014338,2]
[406275651,1771682887407,1577.83237368,0.00014338,2]
[406275652,1771682887435,346.22063169,0.00014338,2]
[406275653,1771682887495,1924.05300537,0.00014338,2]
[406275654,1771682887536,1924.05300537,0.00014338,2]
[406275655,1771682887582,1924.05300537,0.00014338,2]
[406275656,1771682887624,1924.05300537,0.00014338,2]
[406275657,1771682887664,1924.05300537,0.00014338,2]
[406275658,1771682887710,33.52434146,0.00014338,2]
[406275659,1771682887737,1890.52866391,0.00014338,2]
[406275660,1771682887769,1924.05300537,0.00014338,2]
[406275661,1771682887800,1924.05300537,0.00014338,2]
[406275662,1771682887841,1924.05300537,0.00014338,2]
[406275663,1771682887884,1924.05300537,0.00014338,2]
[406275664,1771682887929,413.26931461,0.00014338,2]
[406275665,1771682887955,1510.78369076,0.00014338,2]